bitfinex/quotes_ETHUSD_20240711
["timestamp","ask_amount","ask_price","bid_price","bid_amount"]
[1720717214895,1.10527337,3133.8,3133.7,7.87903494]
[1720717215137,2.4428,3134.3,3134.1,1.49681494]
[1720717215338,1.1051339,3134.2,3134.1,1.49681494]
[1720717215689,1.10513208,3134.2,3134.0,1.49681494]
[1720717215895,1.10513208,3134.1,3134.0,1.49681494]
[1720717216090,1.10513208,3134.1,3133.2,7.48]
[1720717216091,2.4938,3134.0,3133.7,1.49681494]
[1720717216306,1.10513208,3133.9,3133.7,1.49681494]
[1720717216994,2.3052,3133.8,3133.5,1.49681494]
[1720717217194,1.10513208,3133.7,3133.5,1.49681494]
[1720717217610,2.3052,3133.8,3133.5,1.49681494]
[1720717217813,2.53572,3133.8,3133.3,1.49681494]
[1720717218135,1.1054394,3133.7,3133.3,1.49681494]
[1720717218343,1.1054394,3133.6,3133.3,1.49681494]
[1720717218638,1.1054394,3133.5,3133.3,1.49681494]
[1720717218931,1.1054394,3133.4,3133.3,1.49681494]
[1720717219141,3.3801394,3133.4,3133.2,7.48]
[1720717219307,1.1054394,3133.3,3133.2,7.48]
[1720717219696,1.1054394,3133.3,3132.9,1.49681494]
[1720717219895,0.33801394,3133.2,3132.6,7.48]
[1720717220120,1.1054394,3133.1,3132.6,7.48]
[1720717220429,2.3974,3133.0,3132.6,7.48]
[1720717220728,1.1054394,3132.9,3132.6,7.48]
[1720717221433,1.10573016,3132.8,3132.6,7.48]
[1720717221729,1.10573016,3132.7,3132.6,7.48]
[1720717221892,1.10573016,3132.9,3132.6,7.48]
[1720717222747,1.10573016,3132.9,3132.7,1.49681494]
[1720717224033,1.10573016,3133.1,3133.0,1.49681494]
[1720717224232,1.10558789,3133.1,3133.0,1.49681494]
[1720717224613,1.10558789,3133.1,3132.7,3.19206]
[1720717224614,1.10556375,3133.1,3132.7,1.49681494]
[1720717224814,1.10556375,3133.0,3132.5,1.49681494]
[1720717225006,1.10567522,3132.9,3132.5,1.49681494]
[1720717225205,1.10567522,3132.8,3132.5,1.49681494]
[1720717225406,1.10567522,3133.0,3132.5,1.49681494]
[1720717225647,1.49270662,3133.0,3132.5,1.49681494]
[1720717225853,1.10567522,3132.9,3132.5,1.49681494]
[1720717227854,0.3870314,3133.0,3132.5,1.49681494]
[1720717228007,2.3925,3132.8,3132.5,1.49681494]
[1720717228204,1.10575508,3132.7,3132.5,1.49681494]
[1720717228518,1.45558059,3132.7,3132.5,1.49681494]
[1720717228719,1.10575508,3132.6,3132.5,1.49681494]
[1720717229908,1.1058016,3132.6,3132.5,1.49681494]
[1720717231239,3.0,3133.1,3132.5,1.49681494]
[1720717231466,1.10566722,3133.0,3132.5,1.49681494]
[1720717231760,1.10566722,3132.9,3132.5,1.49681494]
[1720717231964,3.55176722,3132.8,3132.5,1.49681494]
[1720717232319,1.10566722,3132.7,3132.5,1.49681494]
[1720717233145,0.35517672,3133.0,3132.7,1.49681494]
[1720717233460,1.10567776,3132.9,3132.7,1.49681494]
[1720717233753,1.10567776,3132.8,3132.7,1.49681494]
[1720717233963,1.10567776,3132.9,3132.7,1.49681494]
[1720717234667,1.10562309,3132.8,3132.5,1.49681494]
[1720717234821,3.0,3133.3,3132.5,1.49681494]
[1720717235023,0.52561,3133.2,3132.5,1.49681494]
[1720717235222,0.94720557,3133.2,3132.5,1.49681494]
[1720717235543,1.10572192,3133.1,3132.5,1.49681494]
[1720717236136,1.10572192,3133.1,3132.3,8.97681494]
[1720717236357,1.10572192,3133.1,3132.5,1.49681494]
[1720717236973,1.56885511,3133.1,3132.5,1.49681494]
[1720717237269,1.10572192,3133.0,3132.5,1.49681494]
[1720717237436,1.10572192,3132.9,3132.5,1.49681494]
[1720717237642,0.46313319,3133.1,3132.5,1.49681494]
[1720717237961,2.4401,3132.8,3132.3,8.97681494]
[1720717238261,1.10580675,3132.7,3132.3,8.97681494]
[1720717239722,1.10580675,3132.7,3132.5,1.49681494]
[1720717240428,1.10580675,3132.6,3132.5,1.49681494]
[1720717241228,2.4306,3133.1,3132.8,1.49681494]
[1720717241565,1.10566857,3133.0,3132.8,1.49681494]
[1720717241862,1.10566857,3132.9,3132.8,1.49681494]
[1720717242074,2.4306,3133.1,3132.8,1.49681494]
[1720717242075,1.10566857,3133.0,3132.8,1.49681494]
[1720717242362,1.10566857,3132.9,3132.8,1.49681494]
[1720717244640,5.4909,3133.5,3132.8,1.49681494]
[1720717244827,1.1055685,3133.4,3132.8,1.49681494]
[1720717245027,5.4909,3133.5,3133.2,1.49681494]
[1720717245230,1.10556081,3133.4,3133.2,1.49681494]
[1720717245427,1.10556081,3133.3,3133.2,1.49681494]
[1720717247061,1.10556081,3133.3,3133.0,1.49681494]
[1720717247244,1.10556081,3133.2,3133.0,1.49681494]
[1720717247594,1.10556081,3133.1,3133.0,1.49681494]
[1720717247774,1.10553368,3133.1,3132.8,1.49681494]
[1720717247932,1.10553368,3133.1,3132.6,8.97681494]
[1720717248137,1.10570437,3133.0,3132.8,1.49681494]
[1720717248334,3.53530437,3132.9,3132.6,8.97681494]
[1720717248537,1.10570437,3132.8,3132.6,8.97681494]
[1720717248844,1.10570437,3132.8,3132.6,1.49681494]
[1720717249042,1.10570437,3132.8,3132.2,4.68939494]
[1720717249264,1.10570437,3132.8,3132.4,1.49681494]
[1720717250647,1.45923481,3132.8,3132.2,1.49681494]
[1720717250849,1.10570437,3132.7,3132.1,7.48]
[1720717251072,1.10570437,3132.6,3132.1,7.48]
[1720717251455,1.10589144,3132.5,3132.2,1.49681494]
[1720717251676,1.10589144,3132.4,3132.2,1.49681494]
[1720717251983,1.10589144,3132.7,3132.2,1.49681494]
[1720717252144,1.55183363,3132.6,3132.2,1.49681494]
[1720717252347,1.10589144,3132.5,3132.2,1.49681494]
[1720717252656,1.10589144,3132.4,3132.2,1.49681494]
[1720717252980,1.10589144,3132.3,3132.2,1.49681494]
[1720717253188,1.10589144,3132.3,3132.1,7.48]
[1720717253476,1.10589144,3132.2,3132.1,7.48]
[1720717253895,1.10589144,3132.2,3132.0,1.49681494]
[1720717254042,1.10589144,3132.1,3132.0,1.49681494]
[1720717255121,1.1059586,3132.2,3132.0,1.49681494]
[1720717255380,1.1059553,3132.1,3132.0,1.49681494]
[1720717255739,1.1059553,3132.1,3131.8,1.49681494]
[1720717255943,1.1059553,3132.0,3131.6,1.49681494]
[1720717256587,1.1059553,3132.0,3131.5,7.48]
[1720717257088,1.1059553,3132.0,3131.6,1.49681494]
[1720717257850,1.10604904,3131.9,3131.6,1.49681494]
[1720717258380,1.10609127,3131.8,3131.6,1.49681494]
[1720717258545,1.10609127,3131.7,3131.6,1.49681494]
[1720717259098,2.4138,3132.8,3132.2,1.49681494]
[1720717259382,1.34725323,3132.7,3132.2,1.49681494]
[1720717259554,1.10587323,3132.6,3132.2,1.49681494]
[1720717259761,1.10587323,3132.5,3132.2,1.49681494]
[1720717260074,1.10587323,3132.4,3132.2,1.49681494]
[1720717260271,1.10587323,3132.3,3132.2,1.49681494]
[1720717260442,1.10587323,3132.6,3132.2,1.49681494]
[1720717260645,1.10587323,3132.5,3132.4,1.49681494]
[1720717260878,1.10587323,3132.5,3132.2,1.49681494]
[1720717261081,1.10588791,3132.4,3132.2,1.49681494]
[1720717261252,3.0,3132.7,3132.2,1.49681494]
[1720717261253,1.10588791,3132.3,3132.2,1.49681494]
[1720717262121,1.10588791,3132.3,3132.2,4.68945494]
[1720717262301,2.3277,3133.2,3132.8,1.49681494]
[1720717262504,2.76463841,3133.7,3133.0,1.49681494]
[1720717262505,1.10564824,3133.1,3133.0,1.49681494]
[1720717262686,1.10564824,3133.1,3132.7,3.19211]
[1720717262892,1.10564824,3133.0,3132.9,1.49681494]
[1720717263214,1.10564824,3133.0,3132.9,3.25576533]
[1720717263386,2.3277,3134.0,3133.6,1.49681494]
[1720717263720,1.57225859,3133.9,3133.6,1.49681494]
[1720717263917,5.41721778,3134.5,3133.2,10.67157]
[1720717263918,2.34184617,3134.3,3133.8,1.49681494]
[1720717264072,1.10542814,3133.8,3133.6,4.68802494]
[1720717264274,2.2769,3134.4,3133.8,1.49681494]
[1720717264472,1.10534852,3134.3,3133.8,1.49681494]
[1720717264672,1.10534852,3134.2,3133.5,1.49681494]
[1720717264882,2.2769,3134.4,3133.7,1.49681494]
[1720717264883,1.10534852,3134.1,3133.7,1.49681494]
[1720717265156,0.39457937,3134.3,3133.7,1.49681494]
[1720717265157,1.10534852,3134.0,3133.7,1.49681494]
[1720717265275,1.10534852,3133.9,3133.2,8.97681494]
[1720717265482,1.10534852,3134.2,3133.4,1.49681494]
[1720717265678,1.55534131,3134.1,3133.4,1.49681494]
[1720717265904,1.10534852,3134.0,3133.4,1.49681494]
[1720717266516,2.2969,3133.9,3133.2,7.48]
[1720717266699,1.10534852,3133.8,3133.2,7.48]
[1720717266909,1.44580838,3133.7,3133.2,7.48]
[1720717267288,1.10557253,3133.6,3133.2,7.48]
[1720717267517,2.4545,3133.4,3133.2,7.48]
[1720717267818,11.04253777,3133.3,3133.2,7.48]
[1720717267979,7.92052477,3133.3,3132.7,7.48]
[1720717268331,5.44307501,3133.2,3132.7,7.48]
[1720717268620,1.10557253,3133.1,3132.7,7.48]
[1720717268826,2.258,3132.9,3132.0,1.49681494]
[1720717269059,1.10557253,3132.8,3132.0,1.49681494]
[1720717269207,0.63635725,3132.7,3132.0,1.49681494]
[1720717269410,1.10557253,3132.6,3132.2,1.49681494]
[1720717269606,1.10557253,3132.6,3132.0,1.49681494]
[1720717270023,1.10557253,3132.6,3132.2,1.49681494]
[1720717270517,1.10557253,3132.6,3131.9,3.19288]
[1720717270518,1.10586746,3132.5,3132.4,1.49681494]
[1720717271049,1.10586746,3132.5,3132.0,1.49681494]
[1720717271252,1.10586746,3132.4,3132.2,1.49681494]
[1720717271612,1.10586746,3132.6,3132.2,1.49681494]
[1720717271830,1.10586746,3132.5,3132.2,1.49681494]
[1720717272043,0.63635725,3132.7,3132.4,1.49681494]
[1720717272352,3.0,3132.8,3132.4,1.49681494]
[1720717272353,1.10578781,3132.6,3132.4,1.49681494]
[1720717272510,1.10578781,3132.5,3132.4,4.68923494]
[1720717273859,1.10572445,3132.5,3132.4,4.68923494]
[1720717274360,1.10572445,3132.5,3132.3,3.19245]
[1720717274361,1.10572616,3132.5,3132.2,1.49681494]
[1720717274569,1.10572616,3132.4,3132.2,1.49681494]
[1720717274772,1.10572616,3133.1,3132.2,1.49681494]
[1720717274935,1.10572616,3133.1,3131.4,3.0]
[1720717274936,2.258,3132.9,3132.0,1.49681494]
[1720717275262,2.3734,3132.7,3132.0,1.49681494]
[1720717275464,1.10572616,3132.6,3132.2,1.49681494]
[1720717275949,1.10591247,3132.5,3132.0,1.49681494]
[1720717276155,1.10591247,3132.4,3132.0,1.49681494]
[1720717276352,1.10591247,3132.4,3131.8,1.49681494]
[1720717276935,1.10596926,3132.3,3131.8,1.49681494]
[1720717277134,0.51415304,3132.5,3132.0,1.49681494]
[1720717277468,1.10597592,3132.4,3132.0,1.49681494]
[1720717277647,1.10597592,3132.3,3132.2,1.49681494]
[1720717277974,1.10597592,3132.3,3132.0,1.49681494]
[1720717278134,1.10597592,3132.3,3131.9,3.19286]
[1720717278135,3.0,3132.8,3132.2,1.49681494]
[1720717278348,1.40587445,3132.7,3132.4,1.49681494]
[1720717278649,1.10587445,3132.6,3132.4,1.49681494]
[1720717278834,1.10587445,3132.9,3132.4,1.49681494]
[1720717279030,1.10587445,3132.8,3132.4,1.49681494]
[1720717279260,1.10587445,3132.7,3132.4,1.49681494]
[1720717279588,1.10587445,3132.6,3132.4,1.49681494]
[1720717279878,3.0,3133.0,3132.4,1.49681494]
[1720717279879,1.10587445,3132.5,3132.4,1.49681494]
[1720717280036,1.10587445,3132.5,3132.4,4.68925494]
[1720717280468,2.34129891,3133.5,3132.4,4.68925494]
[1720717280667,1.60506814,3133.4,3132.6,1.49681494]
[1720717280985,1.10568031,3133.3,3132.6,1.49681494]
[1720717281150,1.10568031,3133.2,3132.9,1.49681494]
[1720717281340,1.10568031,3133.1,3132.9,1.49681494]
[1720717281541,1.10568031,3133.0,3132.9,1.49681494]
[1720717282141,1.10568031,3133.0,3132.6,1.49681494]
[1720717282474,1.10568031,3132.9,3132.6,1.49681494]
[1720717282681,1.10568031,3133.3,3132.6,1.49681494]
[1720717282843,1.26618712,3133.2,3132.6,1.49681494]
[1720717283180,1.10568031,3133.1,3132.6,1.49681494]
[1720717283863,1.10575119,3133.0,3132.4,4.68924494]
[1720717284095,1.10575119,3132.9,3132.4,4.68924494]
[1720717284410,1.10570184,3132.8,3132.4,4.68924494]
[1720717284559,1.10570184,3132.7,3132.6,1.49681494]
[1720717284759,1.10570184,3132.7,3132.4,4.68924494]
[1720717285061,1.10570184,3132.6,3132.4,4.68924494]
[1720717285255,1.10570184,3133.1,3132.6,1.49681494]
[1720717285456,1.10569418,3133.0,3132.6,1.49681494]
[1720717285762,0.16050681,3133.2,3132.8,1.49681494]
[1720717285763,1.10569418,3132.9,3132.8,1.49681494]
[1720717286161,1.10569418,3132.9,3132.6,1.49681494]
[1720717286465,1.10569418,3132.8,3132.6,1.49681494]
[1720717286789,1.10569418,3132.7,3132.6,1.49681494]
[1720717286989,1.10570382,3132.7,3132.6,1.49681494]
[1720717287162,1.10570375,3132.7,3132.6,1.49681494]
[1720717288007,1.10570375,3132.7,3132.4,1.49681494]
[1720717288164,1.10570375,3132.6,3132.4,1.49681494]
[1720717288497,1.10570375,3132.5,3132.4,1.49681494]
[1720717288701,1.10570375,3132.5,3132.4,4.68925494]
[1720717289275,3.0,3133.5,3132.7,1.49681494]
[1720717289502,1.67091026,3133.4,3132.7,1.49681494]
[1720717289703,1.10565232,3133.3,3132.7,1.49681494]
[1720717289888,1.10565232,3133.2,3132.7,1.49681494]
[1720717290071,1.10565232,3133.3,3132.6,1.49681494]
[1720717290284,1.10565232,3133.3,3133.0,1.49681494]
[1720717290481,3.0,3133.5,3133.0,1.49681494]
[1720717290664,1.10556954,3133.4,3133.2,1.49681494]
[1720717290866,1.10556954,3133.3,3133.0,1.49681494]
[1720717291107,4.99293422,3134.0,3133.2,1.49681494]
[1720717291426,1.10551109,3133.9,3133.4,1.49681494]
[1720717291707,1.10551109,3133.8,3133.4,1.49681494]
[1720717291863,1.10551109,3133.7,3133.4,1.49681494]
[1720717292064,1.10551109,3133.6,3133.4,1.49681494]
[1720717292281,1.10551109,3133.5,3133.4,1.49681494]
[1720717292480,1.10551109,3133.5,3133.2,1.49681494]
[1720717292804,1.10551109,3133.4,3133.1,7.48]
[1720717292978,1.10551109,3133.8,3133.1,7.48]
[1720717293363,4.10551109,3133.8,3133.1,7.48]
[1720717293598,1.78955562,3133.7,3133.1,7.48]
[1720717293807,1.10551109,3133.6,3133.1,7.48]
[1720717294122,1.10551109,3133.6,3133.2,1.49681494]
[1720717294123,1.10555703,3133.5,3133.2,1.49681494]
[1720717294267,3.0,3133.6,3133.2,1.49681494]
[1720717294467,2.258,3134.0,3133.4,1.49681494]
[1720717294468,1.10546598,3133.5,3133.4,1.49681494]
[1720717295089,1.10546598,3133.5,3133.2,1.49681494]
[1720717295301,1.10546598,3133.4,3133.2,1.49681494]
[1720717295478,3.0,3133.9,3133.2,1.49681494]
[1720717295479,1.10546598,3133.8,3133.2,1.49681494]
[1720717295806,1.10546598,3133.7,3133.2,1.49681494]
[1720717295980,1.10546598,3133.6,3133.2,1.49681494]
[1720717296180,0.6363466,3133.8,3133.2,1.49681494]
[1720717296181,1.10546598,3133.5,3133.2,1.49681494]
[1720717296493,1.10546598,3133.4,3133.2,1.49681494]
[1720717296696,1.10546598,3133.7,3133.2,1.49681494]
[1720717296914,1.27964724,3133.6,3133.2,1.49681494]
[1720717297205,0.17418126,3133.6,3133.2,1.49681494]
[1720717297410,1.10550739,3133.5,3133.2,1.49681494]
[1720717297582,0.6363466,3133.8,3133.2,1.49681494]
[1720717297583,1.10550739,3133.4,3133.2,1.49681494]
[1720717297780,1.10550739,3133.7,3133.2,1.49681494]
[1720717298405,1.10550739,3133.7,3133.6,1.49681494]
[1720717298580,1.10550739,3133.8,3133.6,1.49681494]
[1720717298783,1.10550739,3133.7,3133.6,1.49681494]
[1720717299034,1.10550739,3133.7,3133.4,3.19141]
[1720717299035,1.10550739,3133.7,3133.5,1.49681494]
[1720717299234,1.10550739,3133.6,3133.5,1.49681494]
[1720717300546,3.0,3134.3,3133.7,1.49681494]
[1720717300841,1.63115135,3134.2,3133.7,1.49681494]
[1720717300991,1.10535135,3134.1,3133.7,1.49681494]
[1720717301335,1.10535135,3134.0,3133.7,1.49681494]
[1720717301536,1.10535135,3134.2,3133.7,1.49681494]
[1720717301696,1.10535135,3134.1,3133.7,1.49681494]
[1720717302022,1.10535135,3134.0,3133.7,1.49681494]
[1720717302229,3.0,3134.3,3133.9,1.49681494]
[1720717302425,1.10528538,3134.2,3133.9,1.49681494]
[1720717302585,1.10528538,3134.1,3133.7,1.49681494]
[1720717302790,3.5258,3134.3,3133.7,1.49681494]
[1720717303228,3.5258,3134.3,3133.5,1.49681494]
[1720717303400,0.39457937,3134.2,3133.5,1.49681494]
[1720717303601,0.39203794,3134.1,3133.5,1.49681494]
[1720717303801,0.39457937,3134.2,3133.5,1.49681494]
[1720717304006,3.0,3134.3,3133.5,4.68811494]
[1720717304229,2.258,3134.4,3133.5,4.68811494]
[1720717304523,2.258,3134.4,3134.0,1.49681494]
[1720717304935,3.0,3134.5,3134.0,1.49681494]
[1720717305094,0.39457937,3134.7,3134.0,1.49681494]
[1720717305095,5.31792896,3134.6,3134.0,1.49681494]
[1720717305488,3.0,3134.5,3134.0,1.49681494]
[1720717305688,2.31792896,3134.6,3134.0,1.49681494]
[1720717305905,0.00082896,3134.6,3134.0,1.49681494]
[1720717306304,0.00082896,3134.6,3134.2,1.49681494]
[1720717308152,0.00082896,3134.6,3134.0,3.19079]
[1720717308309,0.00082896,3134.6,3134.2,1.49681494]
[1720717308825,0.00082896,3134.6,3133.9,3.19087]
[1720717309457,0.00082896,3134.6,3134.0,1.49681494]
[1720717310012,0.00082896,3134.6,3133.8,10.67095]
[1720717310519,0.00082896,3134.6,3134.1,1.49681494]
[1720717312747,1.10520004,3134.5,3134.1,1.49681494]
[1720717312920,0.00082896,3134.6,3134.1,1.49681494]
[1720717312921,1.10520004,3134.4,3134.1,1.49681494]
[1720717313122,1.10520004,3134.5,3134.1,1.49681494]
[1720717314149,1.10519953,3134.4,3134.1,1.49681494]
[1720717314325,1.10519953,3134.3,3134.1,1.49681494]
[1720717314522,0.00082896,3134.6,3134.1,1.49681494]
[1720717314523,1.10521792,3134.2,3134.1,1.49681494]
[1720717314726,1.10521792,3134.2,3134.0,1.49681494]
[1720717314957,1.10521792,3134.1,3134.0,1.49681494]
[1720717315539,1.10521792,3134.1,3133.8,10.67096]
[1720717315540,1.10521792,3134.1,3133.8,8.97681494]
[1720717315861,0.00082896,3134.6,3133.8,8.97681494]
[1720717315862,1.10521792,3134.0,3133.8,8.97681494]
[1720717316065,1.10521792,3134.5,3133.8,8.97681494]
[1720717316270,1.10521792,3134.5,3133.8,1.49681494]
[1720717316435,2.3168,3134.4,3133.6,1.49681494]
[1720717316637,1.44741971,3134.3,3133.6,1.49681494]
[1720717316823,1.10521792,3134.2,3133.8,1.49681494]
[1720717317453,1.10529185,3134.1,3133.8,1.49681494]
[1720717317807,1.10529185,3134.0,3133.8,1.49681494]
[1720717318061,3.0,3134.5,3134.1,1.49681494]
[1720717318262,0.00082896,3134.6,3134.2,1.49681494]
[1720717318441,1.10517644,3134.5,3134.2,1.49681494]
[1720717318646,0.00082896,3134.6,3134.4,1.49681494]
[1720717318973,1.10506985,3134.5,3134.4,1.49681494]
[1720717319268,1.10506985,3134.5,3134.4,4.68721494]
[1720717319771,1.10506985,3134.5,3134.4,1.49681494]
[1720717320227,1.10506985,3134.5,3134.0,1.49681494]
[1720717320430,1.10506985,3134.4,3134.0,1.49681494]
[1720717320627,1.10518574,3134.3,3134.2,1.49681494]
[1720717321326,1.10518574,3134.3,3134.0,1.49681494]
[1720717321544,1.10518574,3134.2,3134.0,1.49681494]
[1720717321840,1.10518574,3134.1,3134.0,1.49681494]
[1720717322163,1.10521297,3134.5,3134.2,1.49681494]
[1720717322387,1.10521297,3134.5,3133.5,7.48]
[1720717322388,1.10521297,3134.4,3133.5,7.48]
[1720717322583,2.258,3133.8,3133.5,7.48]
[1720717322865,2.258,3133.8,3132.7,7.48]
[1720717322866,14.84350701,3133.7,3132.7,7.48]
[1720717323074,1.10521297,3133.6,3132.7,7.48]
[1720717323229,2.258,3132.8,3132.7,7.48]
[1720717323428,2.4308,3132.7,3131.9,8.97681494]
[1720717323667,1.10594768,3132.6,3131.9,8.97681494]
[1720717323829,1.10594768,3132.5,3131.9,8.97681494]
[1720717324036,1.10594768,3132.6,3132.2,1.49681494]
[1720717324325,1.10594768,3132.5,3132.2,1.49681494]
[1720717324531,1.10594768,3132.4,3132.2,1.49681494]
[1720717324830,1.10594768,3132.3,3132.2,1.49681494]
[1720717326280,1.10594109,3132.3,3132.0,1.49681494]
[1720717326447,1.105956,3132.2,3131.9,7.48]
[1720717326643,1.105956,3132.1,3131.9,7.48]
[1720717326870,1.105956,3132.6,3131.9,7.48]
[1720717327669,1.105956,3132.3,3131.8,1.49681494]
[1720717328035,1.105956,3132.3,3131.4,7.48]
[1720717328036,4.105956,3132.3,3131.6,1.49681494]
[1720717328236,1.105956,3132.2,3131.6,1.49681494]
[1720717328653,1.105956,3132.2,3131.8,1.49681494]
[1720717329072,1.105956,3132.2,3131.6,1.49681494]
[1720717329273,1.7423516,3132.2,3131.4,8.97681494]
[1720717329478,1.105956,3132.1,3131.4,8.97681494]
[1720717329779,3.0,3132.3,3131.4,8.97681494]
[1720717329780,1.10606761,3132.0,3131.4,8.97681494]
[1720717330074,3.0,3132.3,3131.4,1.49681494]
[1720717330273,1.10606715,3132.2,3131.4,1.49681494]
[1720717330489,1.10606715,3132.1,3131.4,1.49681494]
[1720717330670,1.10606715,3132.2,3131.4,1.49681494]
[1720717331067,1.97536387,3132.2,3131.4,1.49681494]
[1720717331399,1.10606715,3132.1,3131.4,1.49681494]
[1720717332559,0.86929672,3132.2,3131.4,1.49681494]
[1720717332784,1.10607617,3132.1,3131.4,1.49681494]
[1720717333158,3.0,3132.3,3131.4,1.49681494]
[1720717333457,3.75869,3132.3,3131.4,1.49681494]
[1720717333657,1.10607532,3132.2,3131.4,1.49681494]
[1720717333858,1.10607532,3132.1,3131.4,1.49681494]
[1720717334095,3.75869,3132.3,3131.4,1.49681494]
[1720717334279,1.10616936,3132.2,3131.4,1.49681494]
[1720717334483,2.258,3132.0,3131.2,1.49681494]
[1720717334667,2.258,3132.0,3131.1,7.48]
[1720717334668,2.258,3131.6,3131.1,7.48]
[1720717335463,4.7258,3131.6,3131.1,7.48]
[1720717335899,3.0,3131.5,3131.1,7.48]
[1720717337190,2.258,3131.2,3131.1,7.48]
[1720717337396,2.258,3131.2,3130.6,1.49681494]
[1720717337724,2.258,3131.2,3130.8,1.49681494]
[1720717338103,3.45849604,3131.5,3130.8,1.49681494]
[1720717338422,0.8184296,3131.4,3130.4,8.97681494]
[1720717338633,1.27692564,3131.4,3130.4,8.97681494]
[1720717339822,2.258,3131.2,3130.4,7.48]
[1720717339986,0.45849604,3131.1,3130.4,7.47873576]
[1720717340888,3.45849604,3131.1,3130.4,7.47873576]
[1720717341091,0.5716496,3131.0,3130.4,7.47873576]
[1720717341291,2.258,3130.8,3130.0,1.49681494]
[1720717341510,2.258,3130.8,3129.9,7.47873576]
[1720717341511,5.71649604,3130.8,3129.9,7.47873576]
[1720717341724,0.45849604,3130.7,3129.9,7.47873576]
[1720717341921,0.5716496,3130.6,3129.9,7.47873576]
[1720717343332,3.0,3130.7,3129.9,7.47873576]
[1720717343494,3.0,3130.8,3130.2,1.49681494]
[1720717343825,4.741,3131.6,3130.4,1.49681494]
[1720717344129,0.45849604,3131.5,3130.4,8.9755507]
[1720717344336,0.5199496,3131.4,3130.7,1.49681494]
[1720717344519,0.97844564,3131.4,3130.7,1.49681494]
[1720717344725,2.4362,3132.1,3131.0,3.19385]
[1720717344894,2.4362,3132.6,3131.8,1.49681494]
[1720717345095,4.6942,3133.1,3131.9,0.06385132]
[1720717345431,0.45849604,3133.0,3132.1,1.49681494]
[1720717345641,0.97376564,3133.0,3132.1,1.49681494]
[1720717345931,0.97376564,3133.0,3131.9,1.49681494]
[1720717346297,1.30708054,3133.0,3131.9,1.49681494]
[1720717346535,3.97376564,3133.0,3131.9,1.49681494]
[1720717347228,3.97376564,3133.0,3132.2,1.49681494]
[1720717347534,2.3351,3133.6,3132.6,3.19216]
[1720717347705,3.76542821,3133.3,3132.3,1.49681494]
[1720717347908,0.45849604,3133.2,3132.4,1.49681494]
[1720717348432,0.45849604,3133.2,3131.7,3.19305]
[1720717348610,0.60234282,3133.1,3132.2,1.49681494]
[1720717348936,0.45849604,3133.0,3132.4,1.49681494]
[1720717352359,0.33329873,3133.5,3131.5,2.4671]
[1720717352643,0.45849604,3133.9,3132.6,3.19223]
[1720717352803,0.45849604,3133.4,3132.7,7.47873576]
[1720717353137,2.4971,3133.3,3132.7,7.47873576]
[1720717353339,11.74331504,3133.2,3132.7,7.47873576]
[1720717353553,12.6313115,3133.1,3132.0,7.47873576]
[1720717353702,3.45849604,3133.0,3132.0,7.47873576]
[1720717353900,3.45849604,3133.0,3132.1,1.49681494]
[1720717353901,0.45849604,3133.0,3132.1,1.49681494]
[1720717354139,0.45849604,3133.0,3132.0,7.47873576]
[1720717354140,3.0,3132.9,3132.3,1.49681494]
[1720717354338,0.45849604,3133.0,3132.3,1.49681494]
[1720717354637,3.0,3133.2,3132.3,1.49681494]
[1720717354830,2.4971,3133.3,3132.6,1.49681494]
[1720717355028,1.10580384,3133.2,3132.6,1.49681494]
[1720717355375,1.10580384,3133.1,3132.4,1.49681494]
[1720717355542,1.56429988,3133.1,3132.4,1.49681494]
[1720717355725,1.56223383,3133.0,3132.2,1.49681494]
[1720717355930,1.56429988,3132.9,3132.2,1.49681494]
[1720717356146,1.56429988,3132.9,3132.0,7.47873576]
[1720717356147,1.10580384,3132.8,3132.4,1.49681494]
[1720717356443,1.10580384,3132.7,3132.4,1.49681494]
[1720717356619,1.10580384,3132.9,3132.4,1.49681494]
[1720717357619,1.10587881,3132.8,3132.4,1.49681494]
[1720717357837,1.10587881,3132.7,3132.4,1.49681494]
[1720717358109,1.10587881,3132.6,3132.4,1.49681494]
[1720717358319,0.45642999,3133.0,3132.0,8.9755507]
[1720717358508,1.10588348,3132.9,3132.0,8.9755507]
[1720717358705,1.30796443,3132.8,3132.0,8.9755507]
[1720717358908,1.10588348,3132.7,3132.0,8.9755507]
[1720717359347,1.10588348,3132.7,3132.0,1.49681494]
[1720717359552,2.4662,3132.6,3131.8,1.49681494]
[1720717359756,1.10588348,3132.5,3131.6,8.9755507]
[1720717359907,0.65720835,3132.4,3131.8,1.49681494]
[1720717360113,1.10588348,3132.3,3131.8,1.49681494]
[1720717360408,1.10588348,3132.3,3131.2,3.19359]
[1720717360409,7.110492,3132.2,3131.4,1.49681494]
[1720717360611,1.10588348,3132.1,3131.2,7.47873576]
[1720717360811,2.4255,3132.0,3131.2,7.47873576]
[1720717361007,1.34884084,3131.9,3131.2,7.47873576]
[1720717361322,1.10629084,3131.8,3131.2,7.47873576]
[1720717361524,1.10631636,3131.7,3131.2,7.47873576]
[1720717361727,1.10631636,3131.6,3131.0,1.49681494]
[1720717361929,3.24255,3131.9,3131.0,1.49681494]
[1720717361930,1.10631636,3131.5,3131.0,1.49681494]
[1720717362130,1.10631636,3131.8,3131.0,1.49681494]
[1720717362328,0.43488664,3131.7,3130.8,1.49681494]
[1720717362531,1.10631636,3131.6,3130.8,1.49681494]
[1720717363019,2.285,3131.5,3130.4,19.76873576]
[1720717363253,1.10631636,3131.4,3130.4,7.47873576]
[1720717363430,3.013,3131.3,3130.1,7.47873576]
[1720717363646,1.6190976,3131.2,3130.1,7.47873576]
[1720717363846,1.65631636,3131.1,3130.1,7.47873576]
[1720717364159,1.10631636,3131.0,3130.2,1.49681494]
[1720717364451,1.10664558,3130.9,3130.2,1.49681494]
[1720717364655,1.10664558,3130.9,3130.1,7.47873576]
[1720717364656,1.10664558,3130.8,3130.1,7.47873576]
[1720717364859,1.10664558,3130.9,3130.0,1.49681494]
[1720717365058,1.10664558,3131.0,3130.0,1.49681494]
[1720717365216,0.71566456,3130.9,3130.0,1.49681494]
[1720717365416,1.10664558,3130.8,3130.0,1.49681494]
[1720717366275,2.4396,3130.7,3129.8,7.47873576]
[1720717366560,1.10664558,3130.6,3129.8,7.47873576]
[1720717366916,4.10664558,3130.6,3129.8,7.47873576]
[1720717367156,2.06127014,3130.5,3129.8,7.47873576]
[1720717367455,1.10664558,3130.4,3129.8,7.47873576]
[1720717367647,3.0,3130.4,3129.8,7.47873576]
[1720717368026,0.95462456,3130.5,3129.8,8.9755507]
[1720717368358,1.10675651,3130.4,3129.8,8.9755507]
[1720717368521,0.95462456,3130.5,3129.8,8.9755507]
[1720717369242,0.39546246,3130.4,3129.8,8.9755507]
[1720717369817,0.39546246,3130.4,3129.8,1.49681494]
[1720717373539,0.39546246,3130.4,3129.4,22.96413576]